bitfinex/quotes_ETHUSD_20240907
["timestamp","ask_amount","ask_price","bid_price","bid_amount"]
[1725691768266,0.45963426,2280.2,2280.1,0.07808098]
[1725691768592,0.45963426,2280.2,2279.9,4.38604]
[1725691769083,0.45963426,2280.2,2280.0,0.07808098]
[1725691772112,0.45963426,2280.2,2280.0,4.91034108]
[1725691772272,0.45963426,2280.2,2280.1,4.38577]
[1725691772474,0.45963426,2280.2,2280.1,4.46378602]
[1725691773484,0.45963426,2280.2,2280.1,0.07801602]
[1725691773802,0.45963426,2280.2,2280.1,4.46378602]
[1725691778415,0.45963426,2280.2,2280.1,4.55149002]
[1725691779596,0.45963426,2280.2,2280.1,4.46378602]
[1725691783402,0.45963426,2280.2,2280.1,8.84955602]
[1725691787754,0.45963426,2280.2,2280.1,4.46378602]
[1725691790263,0.45963426,2280.2,2280.1,0.07801602]
[1725691793850,0.45963426,2280.2,2279.8,4.38621]
[1725691794150,0.29001343,2280.1,2279.9,1.60591649]
[1725691794315,0.45963426,2280.2,2279.9,0.07763927]
[1725691800550,4.84523426,2280.2,2279.9,0.07763927]
[1725691801663,4.84523426,2280.2,2279.7,5.73938767]
[1725691801956,4.84523426,2280.2,2280.0,0.07821088]
[1725691802156,4.84523426,2280.2,2279.8,1.52837459]
[1725691802157,4.84523426,2280.2,2279.7,4.82653]
[1725691802322,8.45284669,2280.2,2280.1,0.07821088]
[1725691802522,9.00284669,2280.2,2279.7,4.82653]
[1725691802735,9.00284669,2280.2,2280.1,0.07821088]
[1725691802941,4.38586,2280.1,2279.7,0.44]
[1725691803742,2.4405,2280.0,2279.7,0.44]
[1725691803956,3.45013426,2280.2,2279.8,5.91468958]
[1725691804255,3.45013426,2280.2,2279.8,4.38633]
[1725691804843,3.45013426,2280.2,2279.8,8.77258]
[1725691805065,3.45013426,2280.2,2279.8,8.77247]
[1725691805726,3.45013426,2280.2,2279.8,4.38622]
[1725691806418,1.00963426,2280.2,2279.8,4.38622]
[1725691807322,1.00963426,2280.2,2279.9,4.38615]
[1725691807530,0.45963426,2280.2,2280.0,4.38585]
[1725691807731,0.45963426,2280.2,2280.0,8.77172]
[1725691807941,0.45963426,2280.2,2280.0,4.38585]
[1725691808154,0.45963426,2280.2,2280.0,8.77172]
[1725691808726,0.45963426,2280.2,2280.0,4.38585]
[1725691815566,0.45963426,2280.2,2280.1,0.07808096]
[1725691817563,1.18817069,2280.2,2280.1,0.07808096]
[1725691817875,2.3378,2280.1,2279.9,0.44]
[1725691819644,0.45963426,2280.2,2279.9,0.44]
[1725691822075,0.45963426,2280.2,2279.9,4.82615]
[1725691823648,0.45963426,2280.2,2279.9,0.44]
[1725691824240,8.10609569,2280.2,2279.9,0.44]
[1725691825067,4.38577,2280.1,2279.9,0.44]
[1725691825396,4.38577,2280.1,2279.7,0.44]
[1725691825595,4.38577,2280.1,2279.8,1.96838595]
[1725691825795,4.38577,2280.1,2279.8,0.44]
[1725691826001,5.63493557,2280.1,2279.8,0.44]
[1725691826201,2.3378,2280.0,2279.8,0.44]
[1725691827275,4.38577,2280.1,2279.8,0.44]
[1725691827990,7.18302426,2280.2,2279.8,0.44]
[1725691830503,7.18302426,2280.2,2279.9,0.07571526]
[1725691830671,8.33986669,2280.2,2279.9,0.07571526]
[1725691831905,8.33986669,2280.2,2279.9,0.12995783]
[1725691832365,4.38578,2280.1,2279.9,0.12995783]
[1725691834206,8.33985669,2280.2,2279.9,0.12995783]
[1725691834363,0.45963426,2280.2,2279.9,0.12995783]
[1725691834567,0.45963426,2280.2,2280.0,1.52823764]
[1725691834768,0.45963426,2280.2,2279.9,0.12995783]
[1725691835071,0.45963426,2280.2,2280.0,0.12995784]
[1725691835411,0.45963426,2280.2,2279.8,4.91397867]
[1725691835615,0.45963426,2280.2,2280.1,0.12995784]
[1725691835780,0.45963426,2280.2,2279.8,5.73911767]
[1725691836103,0.45963426,2280.2,2279.9,8.20679348]
[1725691836320,0.45963426,2280.2,2280.1,8.77154]
[1725691836480,0.45963426,2280.2,2280.1,13.50494002]
[1725691836667,0.45963426,2280.2,2280.1,13.94494002]
[1725691836868,0.45963426,2280.2,2280.1,14.07489786]
[1725691837302,0.45963426,2280.2,2280.1,8.77627019]
[1725691838207,0.45963426,2280.2,2280.1,9.68912786]
[1725691840209,0.45963426,2280.2,2280.1,14.07489786]
[1725691841280,0.45963426,2280.2,2280.1,14.07440097]
[1725691841480,0.45963426,2280.2,2280.1,14.07442108]
[1725691842418,2.3709,2281.3,2280.8,4.38441]
[1725691842602,2.3709,2281.3,2280.9,0.438441]
[1725691842803,2.3709,2281.6,2281.2,4.38355]
[1725691842978,6.75353,2281.8,2281.3,4.38346]
[1725691843288,6.75353,2281.8,2281.4,0.12995784]
[1725691843488,6.75378,2281.6,2281.4,0.12995784]
[1725691843718,6.75378,2281.6,2281.0,4.38391]
[1725691843877,6.75378,2281.6,2281.5,0.12995784]
[1725691844217,11.13684,2281.6,2281.0,4.38391]
[1725691844676,11.13684,2281.6,2281.1,0.12688273]
[1725691844876,1.3812693,2281.5,2281.1,0.12688273]
[1725691845905,5.7643493,2281.5,2281.1,0.12688273]
[1725691846408,5.7643493,2281.5,2280.9,4.38412]
[1725691846620,5.7643493,2281.5,2281.2,0.1270643]
[1725691846919,5.7643493,2281.5,2281.3,0.1270643]
[1725691847433,5.7643493,2281.5,2281.0,4.38401]
[1725691847638,4.38308,2281.5,2281.4,0.1270643]
[1725691847923,4.93308,2281.5,2281.4,0.1270643]
[1725691848110,4.93308,2281.5,2281.0,4.47168157]
[1725691848297,4.93308,2281.5,2281.4,0.1270643]
[1725691848495,4.93308,2281.5,2281.0,4.38401]
[1725691848822,4.38261,2281.8,2281.2,6.00877]
[1725691849008,8.76521,2281.8,2281.3,4.38345]
[1725691849397,4.3826,2281.8,2281.4,0.1270643]
[1725691849598,8.7652,2281.8,2281.4,0.1270643]
[1725691850382,0.55,2281.7,2281.4,0.1270643]
[1725691850613,4.93269,2281.7,2281.4,0.1270643]
[1725691850818,6.26275281,2281.7,2281.4,0.1270643]
[1725691851022,6.26275281,2281.7,2281.2,4.47131219]
[1725691851225,6.26275281,2281.7,2281.5,0.1269346]
[1725691851527,6.26275281,2281.7,2281.6,0.1269346]
[1725691851823,4.93269,2281.7,2281.2,4.47131219]
[1725691852027,4.93269,2281.7,2281.6,0.1269346]
[1725691852214,4.93269,2281.7,2281.2,4.47131219]
[1725691852402,4.93269,2281.7,2281.6,0.1269346]
[1725691852730,6.26275281,2281.7,2281.6,0.1269346]
[1725691852892,6.26275281,2281.7,2281.2,4.47131219]
[1725691853093,4.93269,2281.7,2281.3,0.12692163]
[1725691853293,4.93269,2281.7,2281.2,4.47131219]
[1725691853536,4.93269,2281.7,2281.3,0.12692163]
[1725691853894,4.93269,2281.7,2281.2,4.47131219]
[1725691854103,4.93269,2281.7,2281.3,0.12692163]
[1725691854405,2.4038,2281.4,2281.0,4.824]
[1725691854586,2.4038,2281.4,2280.9,4.38409]
[1725691854789,6.78707,2281.4,2280.9,4.47176412]
[1725691855021,6.78707,2281.4,2280.9,8.85589412]
[1725691855623,2.4038,2281.4,2280.9,8.85589412]
[1725691855929,6.7872,2281.4,2280.9,4.47176412]
[1725691857709,2.4038,2281.4,2280.7,4.82448]
[1725691857906,2.4038,2281.4,2280.7,0.44]
[1725691857907,4.38375,2281.2,2280.7,0.44]
[1725691858202,4.38375,2281.2,2280.5,4.38487]
[1725691858203,4.38414,2281.0,2280.5,4.38487]
[1725691858993,4.38414,2281.0,2280.5,8.85746038]
[1725691859339,7.33775,2281.1,2280.6,4.38464]
[1725691859637,7.33775,2281.1,2280.5,4.38487]
[1725691859792,7.33775,2281.1,2280.5,4.47256033]
[1725691860292,4.3841,2281.0,2280.5,4.47256033]
[1725691860487,2.4038,2280.8,2280.6,0.12709023]
[1725691860720,2.4038,2280.8,2280.3,0.44]
[1725691860721,2.0,2280.5,2279.7,4.38641]
[1725691860933,1.57653812,2280.2,2279.7,24.28641]
[1725691861432,11.17477,2280.3,2279.7,24.28641]
[1725691861724,6.78928,2280.3,2279.7,28.67284]
[1725691861927,11.17477,2280.3,2279.7,24.28641]
[1725691862143,4.93562,2280.2,2279.7,24.28641]
[1725691862291,6.51215812,2280.2,2279.7,24.28641]
[1725691863917,4.93562,2280.2,2279.7,24.28641]
[1725691864320,4.93562,2280.2,2279.7,19.9]
[1725691865055,4.93562,2280.2,2279.6,24.28669]
[1725691865360,4.38577,2280.1,2279.6,24.28669]
[1725691868860,2.3608,2279.9,2279.7,19.9]
[1725691869013,2.3608,2279.9,2279.5,4.82677]
[1725691869014,6.74705,2279.9,2279.6,19.9]
[1725691869212,11.13331,2279.9,2279.6,19.9]
[1725691869451,6.74705,2279.9,2279.6,19.9]
[1725691870636,2.3608,2279.9,2279.6,24.28673]
[1725691870875,6.74555,2280.7,2279.7,0.52773236]
[1725691871077,2.3608,2280.7,2280.3,4.38522]
[1725691871366,2.3608,2280.9,2280.5,4.38491]
[1725691871743,2.3608,2280.9,2280.4,8.77013]
[1725691872564,2.3608,2280.9,2280.5,4.38497]
[1725691872776,2.3608,2280.9,2280.4,9.647153]
[1725691873067,2.3608,2280.9,2280.4,5.262063]
[1725691873869,2.3608,2280.9,2280.4,9.647153]
[1725691874242,2.3608,2280.9,2280.5,4.38496]
[1725691874438,2.3608,2280.9,2280.5,5.01073081]
[1725691874639,2.3608,2280.9,2280.6,4.3848]
[1725691875245,2.3608,2280.9,2280.5,0.62577081]
[1725691875569,2.3608,2280.9,2280.6,0.10821879]
[1725691876173,6.74503,2280.9,2280.6,0.10821879]
[1725691876584,6.74503,2280.9,2280.4,4.38502]
[1725691876747,6.74503,2280.9,2280.7,0.10737521]
[1725691876938,6.74503,2280.9,2280.4,9.647156]
[1725691877138,6.74503,2280.9,2280.8,0.10737521]
[1725691877339,7.29503,2280.9,2280.4,9.647156]
[1725691877643,7.29503,2280.9,2280.8,0.10737521]
[1725691877644,2.9108,2280.9,2280.8,0.10737521]
[1725691877848,2.9108,2280.9,2280.5,4.38497]
[1725691878081,2.9108,2280.9,2280.8,0.10736224]
[1725691878280,0.55,2280.9,2280.6,4.38476]
[1725691878431,0.55,2281.0,2280.8,0.10736224]
[1725691878637,0.55,2281.0,2280.6,4.38476]
[1725691878872,0.55,2281.0,2280.6,4.38478]
[1725691879178,0.55,2281.0,2280.7,0.10736224]
[1725691882768,4.93407,2281.0,2280.7,0.10736224]
[1725691882967,4.93407,2281.0,2280.5,4.3849]
[1725691882968,2.3608,2280.9,2280.5,4.3849]
[1725691883154,4.93444,2280.8,2280.3,8.77054]
[1725691883333,4.93444,2280.8,2280.3,4.38527]
[1725691883833,4.93444,2280.8,2280.3,8.77056]
[1725691884578,13.12832,2281.2,2280.6,4.38468]
[1725691884746,0.55,2281.1,2280.6,4.38468]
[1725691885070,4.93395,2281.1,2280.6,4.38468]
[1725691886279,2.3608,2281.5,2281.2,4.38356]
[1725691886477,2.3608,2281.5,2281.0,4.38389]
[1725691886896,2.3608,2281.5,2281.0,8.76783]
[1725691887186,4.38327,2281.4,2280.8,4.38429]
[1725691887690,4.38347,2281.3,2280.8,4.38429]
[1725691887856,4.38327,2281.4,2280.8,4.38429]
[1725691888050,10.01960983,2281.4,2280.8,4.38429]
[1725691888251,10.01955983,2281.4,2280.8,4.38429]
[1725691888455,0.55,2281.3,2280.8,4.38429]
[1725691888749,2.4212,2281.2,2280.8,4.38429]
[1725691888981,0.55,2281.1,2280.8,8.76861]
[1725691889212,0.55,2281.1,2280.8,4.38429]
[1725691890595,0.55,2281.1,2280.9,0.10670062]
[1725691892081,2.4212,2281.6,2280.9,0.65225087]
[1725691892280,2.4212,2281.6,2281.1,4.38367]
[1725691892680,2.4212,2281.6,2281.2,0.10673953]
[1725691893409,6.8041,2281.6,2281.2,0.10673953]
[1725691894413,0.55,2281.5,2281.2,0.10673953]
[1725691896298,0.55,2281.5,2281.0,4.82416]
[1725691896598,4.93311,2281.5,2281.0,4.82416]
[1725691896804,4.93311,2281.5,2281.1,0.10650608]
[1725691897167,0.55,2281.5,2281.1,0.10650608]
[1725691898901,0.55,2281.5,2281.1,4.49019608]
[1725691899107,0.55,2281.5,2281.1,5.38637932]
[1725691899696,4.93308,2281.5,2281.1,0.10650608]
[1725691901274,0.55,2281.5,2281.1,0.10650608]
[1725691901699,4.93311,2281.5,2281.1,0.10650608]
[1725691901866,2.4212,2281.4,2281.1,0.10650608]
[1725691902070,2.4212,2281.2,2281.1,0.10650608]
[1725691902264,6.80485,2281.2,2281.1,0.10650608]
[1725691902499,7.35485,2281.2,2280.6,8.76936]
[1725691902706,0.55,2281.1,2280.6,28.66935]
[1725691903005,2.4212,2281.0,2280.6,24.28465]
[1725691903200,2.4212,2281.0,2280.4,4.38503]
[1725691903201,0.55,2280.9,2280.4,24.28503]
[1725691903400,0.55,2280.9,2280.5,4.38498]
[1725691904393,0.55,2280.9,2280.4,24.28503]
[1725691904727,0.55,2280.9,2280.6,4.38468]
[1725691904871,0.55,2280.9,2280.6,8.76939]
[1725691905319,0.55,2280.9,2280.6,8.76938]
[1725691905599,0.55,2280.9,2280.7,0.10645418]
[1725691906023,0.55,2280.9,2280.7,4.49104418]
[1725691906175,0.55,2280.9,2280.7,0.10645418]
[1725691907268,0.55,2280.9,2280.7,4.49103418]
[1725691907471,2.4212,2281.3,2280.9,4.38412]
[1725691907667,2.4212,2281.3,2281.1,4.38384]
[1725691908211,2.4212,2281.3,2281.2,0.1064931]
[1725691908622,2.2548,2281.5,2281.2,0.1064931]
[1725691909271,0.55,2281.4,2281.2,0.1064931]
[1725691911586,0.55,2281.4,2281.2,4.4901331]
[1725691913394,0.55,2281.4,2281.3,4.38346]
[1725691913805,0.55,2281.6,2281.3,4.48938234]
[1725691915594,0.55,2281.6,2281.3,8.87262234]
[1725691915798,0.55,2281.6,2281.4,4.38327]
[1725691916013,0.55,2281.6,2281.4,5.27052423]
[1725691916217,0.55,2281.8,2281.5,4.48889156]
[1725691917212,0.005,2281.9,2281.7,4.38255]
[1725691917387,0.005,2281.9,2281.8,8.87063706]
[1725691921189,0.005,2281.9,2281.8,14.87843706]
[1725691921514,0.005,2281.9,2281.8,35.21863706]
[1725691923092,0.005,2281.9,2281.8,30.83613706]
[1725691923287,0.005,2281.9,2281.8,35.21863706]
[1725691923822,0.46439368,2281.9,2281.8,35.21863706]
[1725691924789,0.005,2282.1,2282.0,14.77166]
[1725691925026,0.005,2282.1,2282.0,34.77725816]
[1725691925235,0.005,2282.1,2282.0,35.21745816]
[1725691925960,0.005,2282.1,2282.0,43.38460648]
[1725691926246,0.0001548,2283.0,2282.9,4.38039]
[1725691926797,0.0001548,2283.0,2282.9,0.10310945]
[1725691926798,4.3803548,2283.0,2282.9,0.10310945]
[1725691927039,4.3803548,2283.0,2282.5,4.38101]
[1725691927040,6.6351548,2283.0,2282.5,4.38101]
[1725691927248,3.07149311,2283.0,2282.6,0.10295398]
[1725691927925,0.55,2282.9,2282.6,0.10295398]
[1725691929158,6.78483,2282.8,2282.6,0.10295398]
[1725691929338,1.11198583,2282.7,2282.6,0.10295398]
[1725691929507,1.66198583,2282.7,2282.2,4.38163]
[1725691929714,1.66198583,2282.7,2282.6,0.10263014]
[1725691929914,1.66198583,2282.7,2282.2,4.38163]
[1725691930410,1.66198583,2282.7,2282.3,0.10263014]
[1725691931635,0.84468158,2282.6,2282.3,0.10263014]
[1725691931851,0.55,2282.5,2282.3,0.10263014]
[1725691932053,0.55,2282.5,2282.1,4.3818]
[1725691932054,0.55,2282.5,2282.2,4.3816]
[1725691932351,11.1656,2282.8,2282.3,0.1030965]
[1725691932352,0.55,2282.7,2282.3,0.1030965]
[1725691932552,4.93082,2282.7,2282.3,0.1030965]
[1725691932764,6.48088783,2282.7,2282.3,0.1030965]
[1725691933474,2.10006783,2282.7,2282.3,4.4846065]
[1725691934646,6.48086783,2282.7,2282.3,4.4846065]
[1725691935584,6.48086783,2282.7,2282.3,0.1030965]
[1725691935946,6.48086783,2282.7,2282.2,4.3817]
[1725691936147,6.48086783,2282.7,2282.4,0.10307058]
[1725691936483,6.48086783,2282.7,2282.5,0.10307058]
[1725691937064,6.48086783,2282.7,2282.2,4.3817]
[1725691937272,6.48086783,2282.7,2282.3,0.10304468]
[1725691938136,0.55,2282.7,2282.3,0.10304468]
[1725691938246,0.55,2282.7,2282.5,4.38106]
[1725691938453,0.55,2282.9,2282.6,0.10294104]
[1725691938786,8.7846448,2283.0,2282.6,0.10294104]
[1725691938987,4.4043548,2283.0,2282.6,0.10294104]
[1725691939163,4.4043548,2283.0,2282.4,4.38122]
[1725691939164,4.38041,2282.9,2282.4,4.38122]
[1725691939488,8.76089,2282.9,2282.4,4.38122]
[1725691939865,4.38041,2282.9,2282.5,0.10294104]
[1725691940469,0.55,2282.8,2282.5,0.10294104]
[1725691940859,0.55,2282.8,2282.5,4.48409104]
[1725691941087,0.55,2282.9,2282.5,4.48409104]
[1725691941793,0.45932839,2282.8,2282.5,4.48409104]
[1725691942093,0.55,2282.7,2282.5,4.48409104]
[1725691942994,0.55,2282.7,2282.6,4.38096]
[1725691943371,0.45932839,2282.8,2282.7,4.38077]
[1725691943867,0.45932839,2282.8,2282.7,4.48371104]
[1725691944072,0.45932839,2282.8,2282.7,0.10294104]
[1725691944274,1.00932839,2282.8,2282.7,0.10294104]
[1725691944458,5.73127671,2282.8,2282.5,19.89983968]
[1725691944657,2.9542,2282.7,2282.6,0.10294104]
[1725691945858,0.55,2282.7,2282.6,0.10294104]
[1725691947787,0.45932839,2282.8,2282.6,4.48390104]
[1725691947996,0.45932839,2282.8,2282.6,0.10294104]
[1725691950361,0.55,2282.7,2282.6,0.10294104]
[1725691950656,0.55,2282.7,2282.3,28.66268968]
[1725691950860,0.55,2282.7,2282.3,24.28123968]
[1725691951095,0.55,2282.7,2282.4,0.1024358]
[1725691954001,4.93077,2282.7,2282.4,0.1024358]
[1725691954300,6.52384967,2282.7,2282.4,0.1024358]
[1725691955097,2.14307967,2282.7,2282.4,0.1024358]
[1725691955478,6.52389967,2282.7,2282.4,0.1024358]
[1725691956698,4.93082,2282.7,2282.4,0.1024358]
[1725691957062,0.55,2282.7,2282.4,0.1024358]
[1725691958992,0.55,2282.7,2282.4,6.1089958]
[1725691959889,2.925,2282.7,2282.4,0.1024358]
[1725691960320,2.925,2282.7,2282.4,4.4837658]
[1725691960798,2.925,2282.7,2282.4,0.1024358]
[1725691961270,2.925,2282.7,2282.4,4.4836558]
[1725691961476,0.55,2282.7,2282.4,4.4836558]
[1725691962266,0.55,2282.7,2282.4,6.1089558]
[1725691963062,0.55,2282.7,2282.4,1.81535762]
[1725691963268,0.45932839,2282.8,2282.6,4.38082]
[1725691963513,0.45932839,2282.8,2282.7,0.10256533]
[1725691964162,0.45932839,2282.8,2282.7,4.48333533]
[1725691967060,0.45932839,2282.8,2282.7,6.10863533]
[1725691967287,0.45932839,2282.8,2282.7,4.48333533]
[1725691970384,0.45932839,2282.8,2282.7,0.10256533]
[1725691971469,0.45932839,2282.8,2282.6,4.38096]
[1725691971670,0.45932839,2282.8,2282.7,0.10226742]
[1725691973809,0.0001548,2283.0,2282.7,0.10226742]
[1725691974012,0.5501548,2283.0,2282.7,0.10226742]
[1725691974239,2.0962101,2283.0,2282.7,0.10226742]
[1725691976888,6.66498,2282.8,2282.7,0.10226742]
[1725691977196,7.21498,2282.8,2282.7,0.10226742]
[1725691978622,9.21498,2282.8,2282.7,0.10226742]
[1725691979296,4.38079,2282.7,2282.3,0.4402]
[1725691979495,0.55,2282.6,2282.4,0.10220265]
[1725691981785,2.2844,2282.5,2282.4,0.10220265]
[1725691981991,2.8344,2282.5,2282.2,0.4402]
[1725691982227,0.55,2282.4,2282.2,0.4402]
[1725691982583,0.55,2282.4,2282.2,4.82189]
[1725691982819,0.55,2282.6,2282.2,4.82189]
[1725691983812,0.45890271,2282.5,2282.2,4.82189]
[1725691983987,0.55,2282.4,2282.2,4.82189]
[1725691984505,0.45890271,2282.5,2282.4,4.38135]
[1725691985025,0.45890271,2282.5,2282.3,4.38149]
[1725691985632,0.45890271,2282.5,2282.4,10.388]
[1725691985915,0.45890271,2282.5,2282.4,10.8282]
[1725691987517,0.45890271,2282.5,2282.4,14.64443536]
[1725691987726,2.2845548,2283.0,2282.6,4.3808]
[1725691987899,0.55,2282.9,2282.6,4.3808]
[1725691988222,0.45883574,2282.8,2282.6,4.3808]
[1725691988427,0.55,2282.7,2282.5,24.72115968]
[1725691989529,2.8121,2282.7,2282.5,20.34003968]
[1725691989828,2.8121,2282.7,2282.5,19.89983968]
[1725691993815,2.8121,2282.7,2282.3,24.72145968]
[1725691994126,2.8121,2282.7,2282.4,4.38133]
[1725691994644,0.55,2282.7,2282.5,4.38113]
[1725691994929,0.55,2282.8,2282.3,24.72138968]
[1725691995095,0.55,2282.8,2282.4,4.38134]
[1725691995493,0.55,2282.8,2282.5,0.10141682]
[1725691996297,0.55,2282.8,2282.5,4.48247682]
[1725691996629,0.55,2282.8,2282.6,4.3808]
[1725691996834,3.83527589,2282.9,2282.6,4.3808]
[1725691997134,3.83527589,2282.9,2282.7,0.10141682]
[1725691997639,0.0001548,2283.0,2282.8,1.6253]
[1725691997839,0.0001548,2283.0,2282.9,4.38039]
[1725691998133,0.0001548,2283.0,2282.9,0.10150749]
[1725692000215,2.2622548,2283.0,2282.9,0.10150749]
[1725692000415,5.26195776,2283.0,2282.9,0.10150749]
[1725692000728,5.26195776,2283.0,2282.9,0.10149454]
[1725692000926,11.64215776,2283.0,2282.9,0.10149454]
[1725692001138,11.64215776,2283.0,2282.5,4.82125]
[1725692001349,0.55,2282.9,2282.5,4.82125]
[1725692001519,0.55,2282.9,2282.6,4.38086]
[1725692002021,0.45884397,2282.8,2282.6,4.38086]
[1725692002215,2.03201986,2282.8,2282.5,0.4402]
[1725692002541,2.03201986,2282.8,2282.3,19.89983968]
[1725692002542,7.19288,2282.7,2282.3,19.89983968]
[1725692003144,2.8121,2282.7,2282.3,24.28135968]
[1725692003311,2.8121,2282.7,2282.3,28.66279968]
[1725692003644,0.55,2282.7,2282.3,25.90657968]
[1725692003808,0.55,2282.7,2282.3,24.28127968]
[1725692004004,0.55,2282.7,2282.3,28.66269968]
[1725692004320,0.55,2282.7,2282.4,4.38124]
[1725692006304,0.55,2282.7,2282.4,4.3813]
[1725692007222,0.55,2282.7,2282.3,28.66270968]
[1725692007837,0.55,2282.7,2282.5,4.38115]
[1725692008041,2.91054397,2282.8,2282.3,24.28123968]
[1725692008424,7.29123397,2282.8,2282.3,24.28123968]
[1725692008621,0.45884397,2282.8,2282.5,4.38103]
[1725692009478,2.4517,2282.7,2282.3,4.38153]
[1725692009748,0.55,2282.6,2282.3,4.38144]
[1725692009948,0.55,2282.6,2282.3,8.76289]
[1725692010543,0.55,2282.6,2282.4,0.09800509]
[1725692011256,12.78719589,2282.5,2282.4,0.09800509]
[1725692011545,13.33736589,2282.5,2282.0,0.4402]
[1725692011743,8.40603589,2282.5,2282.4,0.09473825]
[1725692012044,8.40603589,2282.5,2282.0,0.4402]
[1725692012045,8.83306,2282.4,2282.0,0.4402]
[1725692012251,4.02487589,2282.1,2281.7,24.28240968]
[1725692012438,4.02487589,2282.1,2281.8,4.3825]
[1725692012825,4.02487589,2282.1,2281.7,24.28240968]
[1725692013027,2.4517,2282.1,2281.7,24.28240968]
[1725692013268,2.4517,2282.5,2282.2,4.38173]
[1725692013474,0.55,2282.4,2282.0,6.0073]
[1725692013774,0.55,2282.4,2281.5,19.89983968]
[1725692013775,2.4517,2282.3,2281.9,0.4402]
[1725692013937,2.4517,2282.3,2281.9,4.3822]
[1725692013938,0.55,2282.2,2281.9,4.3822]
[1725692016391,0.55,2282.3,2282.0,4.38201]
[1725692017259,0.45942088,2282.2,2282.1,4.38192]
[1725692019175,0.45942088,2282.2,2282.1,8.76384]
[1725692021577,0.45942088,2282.2,2282.1,19.02778956]
[1725692021740,0.01473003,2282.2,2282.1,22.93698295]
[1725692021933,0.01473003,2282.2,2282.1,23.61334576]
[1725692022935,0.01473003,2282.2,2282.1,23.61230841]
[1725692023252,0.01473003,2282.2,2282.1,22.70415237]
[1725692023456,0.00047263,2282.2,2282.1,23.6122159]
[1725692023659,0.00047263,2282.2,2282.1,22.70415237]
[1725692023875,0.00047263,2282.2,2282.1,27.12092534]
[1725692024251,0.00047263,2282.2,2282.1,22.70415237]
[1725692024570,0.00047263,2282.2,2282.1,27.12087276]
[1725692025276,0.00047263,2282.2,2282.1,22.70415237]
[1725692025476,0.00047263,2282.2,2282.1,23.61197415]
[1725692025645,0.00047263,2282.2,2282.1,23.70702299]
[1725692026362,0.00047263,2282.2,2282.1,27.21589636]
[1725692026742,0.00047263,2282.2,2282.1,47.11575698]
[1725692027470,0.00047263,2282.2,2282.1,47.11571125]
[1725692028274,0.00047263,2282.2,2282.1,47.11571534]
[1725692028575,0.00047263,2282.2,2282.1,47.11573109]
[1725692028783,0.00047263,2282.2,2282.1,43.60693637]
[1725692028978,0.00047263,2282.2,2282.1,42.73379227]
[1725692029150,0.00047263,2282.2,2282.1,38.31712089]
[1725692029355,0.00047263,2282.2,2282.1,43.60700554]
[1725692029547,0.00047263,2282.2,2282.1,47.11584653]
[1725692029758,0.00047263,2282.2,2282.1,51.49770197]
[1725692029962,0.00047263,2282.2,2282.1,44.06283097]
[1725692030187,0.00047263,2282.2,2282.1,47.11574485]
[1725692030553,0.00047263,2282.2,2282.1,51.49766485]
[1725692030949,0.00047263,2282.2,2282.1,47.11574485]
[1725692031150,0.00047263,2282.2,2282.1,51.49766485]
[1725692031349,0.00047263,2282.2,2282.1,55.90925368]
[1725692031851,0.0001548,2283.0,2282.9,10.38608]
[1725692032050,0.0001548,2283.0,2282.9,31.16186805]
[1725692032242,0.0001548,2283.0,2282.9,31.25605005]
[1725692032582,0.0001548,2283.0,2282.9,31.69625005]
[1725692032892,0.46424796,2283.8,2283.7,10.383]
[1725692033097,1e-05,2283.8,2283.7,29.96332999]
[1725692033252,1e-05,2283.8,2283.7,52.34698915]
[1725692033588,0.0586326,2285.5,2284.6,13.57159]
[1725692033893,4.37599,2285.2,2284.4,8.26737]
[1725692034047,2.3773,2285.1,2284.6,4.46641266]
[1725692034246,0.0586326,2285.5,2284.6,9.64985433]
[1725692034449,4.37571,2285.4,2284.6,9.64985433]
[1725692034674,4.4340726,2285.5,2284.6,9.73907685]
[1725692034675,2.3773,2285.3,2284.6,9.73907685]
[1725692034886,2.3773,2285.3,2284.6,9.28368252]
[1725692035046,4.37628,2285.1,2284.6,0.08922252]
[1725692035248,8.7526,2285.1,2284.6,0.08922252]
[1725692035492,4.3764,2285.0,2284.4,4.37751]
[1725692035646,2.3823,2284.7,2284.6,0.08922252]
[1725692035853,2.3823,2284.7,2284.5,4.3773]
[1725692036168,2.62053,2284.7,2284.6,0.08922252]
[1725692036348,3.17053,2284.7,2284.6,0.08922252]
[1725692036552,3.17053,2284.7,2284.4,8.7548]
[1725692036785,3.17053,2284.7,2284.5,0.08922252]
[1725692036999,0.005,2284.7,2284.5,0.08922252]
[1725692037301,0.005,2284.7,2284.5,4.55396017]
[1725692037584,0.005,2284.7,2284.6,4.37713]
[1725692038165,0.005,2284.7,2284.6,4.55388455]
[1725692038376,0.005,2284.7,2284.6,0.08922252]
[1725692038695,0.005,2284.7,2284.6,4.46635252]
[1725692038882,0.005,2284.7,2284.6,24.36571957]
[1725692039766,0.005,2284.7,2284.6,8.84348252]
[1725692039996,0.005,2284.7,2284.6,0.08922252]
[1725692040668,0.005,2284.7,2284.3,4.46524174]
[1725692040868,0.005,2284.7,2284.4,4.37739]
[1725692041095,0.005,2284.7,2284.5,4.37731]
[1725692041604,0.005,2284.7,2284.6,0.08922252]
[1725692043664,0.24323,2284.7,2284.6,0.08922252]
[1725692043993,0.79323,2284.7,2284.3,4.37758]
[1725692044194,0.005,2284.7,2284.6,0.08922252]
[1725692044401,0.005,2284.7,2284.6,4.37713]
[1725692044569,0.005,2284.7,2284.6,4.46635252]
[1725692044971,0.005,2284.7,2284.6,4.55388271]
[1725692045512,0.005,2284.7,2284.6,4.46635252]
[1725692046287,0.005,2284.7,2284.6,0.08922252]
[1725692046888,0.005,2284.7,2284.6,4.55388437]
[1725692047827,0.005,2284.7,2284.6,0.08922252]
[1725692049511,0.005,2284.7,2284.6,4.55388824]
[1725692049719,0.005,2284.7,2284.6,4.46635252]
[1725692050376,10.0,2289.4,2284.7,1.6253]
[1725692050377,0.0586326,2285.5,2284.7,1.6253]